bitfinex/quotes_BTCUSD_20250422
["timestamp","ask_amount","ask_price","bid_price","bid_amount"]
[1745365170595,0.10830305,93634.0,93610.0,0.01540145]
[1745365170800,0.10830305,93634.0,93606.0,0.0008498]
[1745365170955,0.10830305,93634.0,93611.0,0.002]
[1745365171544,0.10830305,93634.0,93612.0,0.127315]
[1745365171780,0.10830305,93634.0,93609.0,0.01068273]
[1745365171978,0.10830305,93634.0,93610.0,0.81795]
[1745365172165,0.10830305,93634.0,93612.0,0.01068239]
[1745365172398,0.00213636,93633.0,93613.0,0.604108]
[1745365172645,0.10830305,93632.0,93614.0,0.01068216]
[1745365172874,0.10830305,93632.0,93619.0,0.01068159]
[1745365173100,0.10830305,93632.0,93620.0,0.184741]
[1745365173323,0.00213636,93643.0,93622.0,0.01068125]
[1745365173535,0.10830305,93642.0,93619.0,0.01068159]
[1745365173789,0.04,93625.0,93622.0,0.01068125]
[1745365173995,0.04,93625.0,93621.0,0.01068136]
[1745365174104,0.04,93625.0,93622.0,0.213694]
[1745365174585,0.04,93625.0,93619.0,0.01068159]
[1745365174790,0.04,93625.0,93622.0,0.01068125]
[1745365175053,0.04,93625.0,93622.0,0.05340584]
[1745365175476,0.04,93625.0,93614.0,0.04272865]
[1745365175778,0.033,93625.0,93617.0,0.11028378]
[1745365175913,0.033,93625.0,93618.0,0.1209737]
[1745365176124,0.033,93625.0,93619.0,0.146892]
[1745365176324,0.034,93625.0,93619.0,0.146892]
[1745365176632,0.033,93625.0,93618.0,0.2561277]
[1745365176849,0.033,93625.0,93619.0,0.251821]
[1745365177064,0.11043941,93624.0,93617.0,0.00113978]
[1745365177269,0.11043941,93624.0,93617.0,0.00013978]
[1745365177666,0.08568292,93622.0,93617.0,0.00013978]
[1745365177885,0.10830305,93618.0,93617.0,0.00013978]
[1745365178023,0.11043941,93618.0,93617.0,0.00013978]
[1745365180038,0.11543941,93618.0,93617.0,0.00013978]
[1745365182000,0.11330305,93618.0,93617.0,0.00013978]
[1745365183518,0.005,93618.0,93617.0,0.00013978]
[1745365184509,0.11192,93650.0,93619.0,0.04272636]
[1745365184759,0.003,93618.0,93617.0,0.00013978]
[1745365186247,0.00213636,93649.0,93617.0,0.00013978]
[1745365186481,0.034,93625.0,93617.0,0.00013978]
[1745365187129,0.034,93625.0,93620.0,0.04272549]
[1745365187354,0.034,93625.0,93619.0,0.04272592]
[1745365187806,0.033,93625.0,93620.0,0.943278]
[1745365188183,0.033,93625.0,93619.0,1.033973]
[1745365188396,0.10830305,93624.0,93617.0,0.00013978]
[1745365189018,0.033,93625.0,93617.0,0.00013978]
[1745365189421,0.034,93625.0,93618.0,0.128793]
[1745365189631,0.034,93625.0,93618.0,0.139876]
[1745365189833,0.033,93625.0,93618.0,0.139876]
[1745365190272,0.033,93625.0,93617.0,0.00013978]
[1745365190686,0.034,93625.0,93617.0,0.00013978]
[1745365192375,0.033,93625.0,93617.0,0.00013978]
[1745365193345,0.14130305,93625.0,93617.0,0.00013978]
[1745365193559,0.11043941,93624.0,93617.0,0.00013978]
[1745365195755,0.11243941,93624.0,93617.0,0.00013978]
[1745365196409,0.11443941,93624.0,93617.0,0.00013978]
[1745365201235,0.10830305,93618.0,93617.0,0.00013978]
[1745365201448,0.11043941,93618.0,93617.0,0.00013978]
[1745365202293,0.11543941,93618.0,93617.0,0.00013978]
[1745365202704,0.12998026,93618.0,93617.0,0.00013978]
[1745365202919,0.13498026,93618.0,93617.0,0.00013978]
[1745365203131,0.22164868,93618.0,93617.0,0.00013978]
[1745365203567,0.22664868,93618.0,93617.0,0.00013978]
[1745365203794,0.01068273,93609.0,93606.0,0.0008498]
[1745365204016,0.10830305,93607.0,93606.0,0.0008498]
[1745365204297,0.1228439,93607.0,93606.0,0.0008498]
[1745365204549,0.1102793,93607.0,93606.0,0.0008498]
[1745365205663,0.1172793,93607.0,93606.0,0.0018498]
[1745365205898,0.1172793,93607.0,93606.0,0.0008498]
[1745365206111,0.1232793,93607.0,93606.0,0.0008498]
[1745365206328,0.1162793,93607.0,93606.0,0.0008498]
[1745365206761,0.1222793,93607.0,93606.0,0.0008498]
[1745365207870,0.1102793,93607.0,93606.0,0.0008498]
[1745365208095,0.1122793,93607.0,93606.0,0.0008498]
[1745365208565,0.17552015,93607.0,93606.0,0.0008498]
[1745365208772,0.58231638,93607.0,93606.0,0.0008498]
[1745365209001,0.57518002,93607.0,93606.0,0.0008498]
[1745365209415,0.57818002,93607.0,93606.0,0.0008498]
[1745365209814,0.58318002,93607.0,93606.0,0.0018498]
[1745365211300,0.69506002,93607.0,93606.0,0.0018498]
[1745365211520,0.90871925,93607.0,93606.0,0.0018498]
[1745365211728,0.5413798,93601.0,93582.0,0.0008498]
[1745365211938,0.10830305,93592.0,93582.0,0.0008498]
[1745365212192,0.11043941,93592.0,93582.0,0.0008498]
[1745365212621,0.12498026,93592.0,93582.0,0.0008498]
[1745365212830,0.13709259,93592.0,93582.0,0.0008498]
[1745365213035,0.12498026,93592.0,93582.0,0.0008498]
[1745365213892,0.11043941,93592.0,93582.0,0.0008498]
[1745365214112,0.10830305,93592.0,93582.0,0.0008498]
[1745365214697,0.12498026,93592.0,93582.0,0.0008498]
[1745365214903,0.12798026,93592.0,93591.0,0.002]
[1745365215121,0.11043941,93592.0,93591.0,0.001]
[1745365215507,0.11443941,93592.0,93591.0,0.002]
[1745365216500,0.17866746,93592.0,93591.0,0.002]
[1745365216703,0.12898026,93592.0,93591.0,0.002]
[1745365219539,0.53277649,93592.0,93591.0,0.002]
[1745365219737,0.53064013,93592.0,93591.0,0.002]
[1745365220385,0.53064013,93592.0,93582.0,0.0008498]
[1745365220386,0.01454085,93583.0,93582.0,0.0008498]
[1745365220564,0.53235344,93583.0,93582.0,0.0008498]
[1745365220762,0.63852013,93583.0,93582.0,0.0008498]
[1745365221801,0.64680646,93583.0,93582.0,0.0008498]
[1745365222022,0.73499439,93583.0,93582.0,0.0008498]
[1745365222438,0.64680646,93583.0,93582.0,0.0008498]
[1745365222652,0.64680646,93583.0,93582.0,0.0018498]
[1745365222868,0.65080646,93583.0,93582.0,0.0018498]
[1745365223932,0.64680646,93583.0,93582.0,0.0008498]
[1745365224149,0.65080646,93583.0,93582.0,0.0018498]
[1745365225007,0.72623371,93583.0,93582.0,0.0018498]
[1745365225486,0.93994773,93583.0,93582.0,0.0018498]
[1745365226133,0.98744773,93583.0,93582.0,0.0018498]
[1745365227420,0.90802048,93583.0,93582.0,0.0008498]
[1745365227823,0.91602048,93583.0,93582.0,0.0018498]
[1745365228171,0.91602048,93583.0,93582.0,0.0008498]
[1745365228373,0.92502048,93583.0,93582.0,0.0018498]
[1745365229182,1.27722048,93583.0,93582.0,0.0018498]
[1745365229847,1.27722048,93583.0,93578.0,0.0008484]
[1745365229848,0.22826173,93580.0,93578.0,0.0008484]
[1745365230050,0.33756478,93580.0,93578.0,0.0008484]
[1745365230310,0.77566478,93580.0,93578.0,0.0008484]
[1745365230921,0.77666478,93580.0,93578.0,0.0008484]
[1745365231154,0.82334977,93580.0,93578.0,0.0008484]
[1745365231336,0.82834977,93580.0,93578.0,0.0008484]
[1745365231757,0.83534977,93580.0,93578.0,0.0008484]
[1745365231945,0.82334977,93580.0,93578.0,0.0008484]
[1745365232366,0.83034977,93580.0,93578.0,0.0008484]
[1745365232570,0.78366478,93580.0,93578.0,0.0008484]
[1745365233182,0.89558478,93580.0,93578.0,0.0008484]
[1745365233592,0.88858478,93580.0,93578.0,0.0008484]
[1745365234136,0.89558478,93580.0,93578.0,0.0008484]
[1745365234351,0.99688783,93580.0,93578.0,0.0008484]
[1745365234533,0.95388783,93580.0,93578.0,0.0008484]
[1745365234680,0.99488783,93580.0,93578.0,0.0008484]
[1745365235106,0.22828685,93569.0,93568.0,0.00085]
[1745365235290,0.42763063,93569.0,93568.0,0.00085]
[1745365235718,0.81763063,93569.0,93568.0,0.00085]
[1745365235918,0.7275899,93569.0,93568.0,0.00085]
[1745365236257,0.74716478,93569.0,93568.0,0.00085]
[1745365237687,0.01454085,93549.0,93513.0,0.01181177]
[1745365237887,0.10830305,93536.0,93513.0,0.01181177]
[1745365238041,0.00213636,93535.0,93513.0,0.01181177]
[1745365238241,0.10830305,93534.0,93513.0,0.01181177]
[1745365238459,0.00213636,93533.0,93503.0,0.01283351]
[1745365238623,0.10830305,93532.0,93504.0,0.01069472]
[1745365238826,0.10830305,93532.0,93503.0,0.01283351]
[1745365238827,0.00213636,93531.0,93511.0,0.00146634]
[1745365239031,0.10830305,93530.0,93511.0,0.0202901]
[1745365239263,0.00213636,93529.0,93511.0,0.00146634]
[1745365239471,0.10830305,93528.0,93511.0,0.00146634]
[1745365239666,0.00213636,93527.0,93511.0,0.00146634]
[1745365239872,0.10830305,93526.0,93511.0,0.00146634]
[1745365240110,0.00213636,93525.0,93511.0,0.00246634]
[1745365240338,0.10830305,93524.0,93511.0,0.00246634]
[1745365240555,0.00213636,93547.0,93515.0,0.2706899]
[1745365240768,0.001,93528.0,93512.0,0.10579381]
[1745365240980,0.10830305,93527.0,93512.0,0.0951]
[1745365241192,0.00213636,93526.0,93512.0,0.0951]
[1745365241406,0.10930305,93525.0,93512.0,0.0951]
[1745365241613,0.10930305,93525.0,93513.0,0.00213856]
[1745365241838,0.10830305,93525.0,93512.0,0.0951]
[1745365242226,0.10830305,93525.0,93512.0,0.0961]
[1745365243518,0.10930305,93525.0,93513.0,0.0021385]
[1745365243802,0.10930305,93525.0,93513.0,0.159486]
[1745365244004,0.001,93525.0,93513.0,0.1616245]
[1745365244409,0.001,93525.0,93514.0,0.184891]
[1745365244817,0.00213636,93540.0,93514.0,0.184891]
[1745365244989,0.10830305,93539.0,93514.0,0.184891]
[1745365245192,0.00213636,93538.0,93514.0,0.184891]
[1745365245391,0.10830305,93537.0,93514.0,0.184891]
[1745365245595,0.00213636,93536.0,93515.0,0.00213844]
[1745365245797,0.10830305,93535.0,93515.0,0.00213844]
[1745365245995,0.00213636,93534.0,93512.0,0.0961]
[1745365246215,0.001,93525.0,93512.0,0.0961]
[1745365246440,0.10830305,93524.0,93512.0,0.001]
[1745365246580,0.00213636,93523.0,93512.0,0.001]
[1745365246787,0.10830305,93522.0,93512.0,0.001]
[1745365246989,0.00213636,93521.0,93512.0,0.001]
[1745365247200,0.10830305,93520.0,93512.0,0.001]
[1745365247818,0.001,93525.0,93512.0,0.00313866]
[1745365248018,0.001,93522.0,93512.0,0.001]
[1745365249312,0.10830305,93525.0,93512.0,0.001]
[1745365249559,0.001,93520.0,93512.0,0.001]
[1745365250015,0.001,93520.0,93513.0,0.0021385]
[1745365250414,0.10830305,93525.0,93512.0,0.001]
[1745365250623,0.10930305,93525.0,93513.0,0.0021385]
[1745365250839,0.10830305,93525.0,93513.0,0.0021385]
[1745365251057,0.10830305,93525.0,93512.0,0.001]
[1745365251229,0.001,93520.0,93512.0,0.001]
[1745365251616,0.001,93520.0,93513.0,0.0021385]
[1745365252453,0.10830305,93525.0,93513.0,0.0021385]
[1745365252647,0.10830305,93524.0,93513.0,0.0061385]
[1745365252928,0.10830305,93524.0,93512.0,0.001]
[1745365253352,0.10830305,93524.0,93513.0,0.002]
[1745365253776,0.00213636,93523.0,93512.0,0.001]
[1745365254031,0.10830305,93522.0,93512.0,0.001]
[1745365254205,0.00213636,93521.0,93513.0,0.002]
[1745365254402,0.10830305,93520.0,93513.0,0.002]
[1745365254637,0.00213636,93519.0,93513.0,0.002]
[1745365254955,0.21387171,93514.0,93513.0,0.002]
[1745365255075,0.32431112,93514.0,93513.0,0.002]
[1745365255270,0.32217476,93514.0,93512.0,0.001]
[1745365255477,0.11043941,93513.0,93512.0,0.001]
[1745365255678,0.10643941,93513.0,93512.0,0.001]
[1745365256254,0.10543941,93513.0,93512.0,0.001]
[1745365256847,0.10743941,93513.0,93512.0,0.002]
[1745365258510,0.56408169,93513.0,93512.0,0.002]
[1745365259176,0.56408169,93513.0,93512.0,0.001]
[1745365259177,0.56208169,93513.0,93512.0,0.001]
[1745365259387,0.57008169,93513.0,93512.0,0.001]
[1745365260183,0.56308169,93513.0,93512.0,0.001]
[1745365260622,0.57008169,93513.0,93512.0,0.001]
[1745365260832,0.67838474,93513.0,93512.0,0.001]
[1745365261994,0.57008169,93513.0,93512.0,0.001]
[1745365262636,0.56308169,93513.0,93512.0,0.001]
[1745365262856,0.57008169,93513.0,93512.0,0.001]
[1745365263272,0.56308169,93513.0,93512.0,0.001]
[1745365263698,0.57108169,93513.0,93512.0,0.001]
[1745365264357,0.51114084,93513.0,93512.0,0.001]
[1745365264575,0.11443941,93513.0,93512.0,0.001]
[1745365265205,0.12243941,93513.0,93512.0,0.001]
[1745365265394,0.11443941,93513.0,93512.0,0.001]
[1745365265543,0.12143941,93513.0,93512.0,0.001]
[1745365266104,0.11343941,93513.0,93512.0,0.001]
[1745365266290,0.12043941,93513.0,93512.0,0.001]
[1745365268176,0.10643941,93513.0,93512.0,0.001]
[1745365268585,0.10943941,93513.0,93512.0,0.001]
[1745365269127,0.10643941,93513.0,93512.0,0.001]
[1745365269576,0.10943941,93513.0,93512.0,0.001]
[1745365269785,0.32031341,93513.0,93512.0,0.001]
[1745365269985,0.10643941,93513.0,93512.0,0.001]
[1745365270198,0.10943941,93513.0,93512.0,0.001]
[1745365271424,0.10643941,93513.0,93512.0,0.001]
[1745365271755,0.11043941,93513.0,93512.0,0.001]
[1745365271960,0.10643941,93513.0,93512.0,0.001]
[1745365272251,0.11143941,93513.0,93512.0,0.001]
[1745365272462,0.10643941,93513.0,93512.0,0.001]
[1745365272758,0.11143941,93513.0,93512.0,0.001]
[1745365273320,0.11643941,93513.0,93512.0,0.001]
[1745365273693,0.51314084,93513.0,93512.0,0.001]
[1745365274718,0.50314084,93513.0,93512.0,0.001]
[1745365275002,0.50814084,93513.0,93512.0,0.001]
[1745365275360,0.51314084,93513.0,93512.0,0.001]
[1745365275793,0.50314084,93513.0,93512.0,0.001]
[1745365276651,0.50714084,93513.0,93512.0,0.001]
[1745365278060,0.80872531,93513.0,93512.0,0.001]
[1745365278267,0.59085131,93513.0,93512.0,0.001]
[1745365278471,0.52268169,93513.0,93512.0,0.001]
[1745365279164,0.52768169,93513.0,93512.0,0.001]
[1745365279362,0.51768169,93513.0,93512.0,0.001]
[1745365280076,0.50914084,93513.0,93512.0,0.001]
[1745365281790,0.51514084,93513.0,93512.0,0.001]
[1745365282012,0.50914084,93513.0,93512.0,0.001]
[1745365282211,0.51514084,93513.0,93512.0,0.001]
[1745365282414,0.50914084,93513.0,93512.0,0.001]
[1745365283174,0.51414084,93513.0,93512.0,0.001]
[1745365283582,0.50314084,93513.0,93512.0,0.001]
[1745365284971,0.50814084,93513.0,93512.0,0.002]
[1745365285197,0.50814084,93513.0,93512.0,0.001]
[1745365285601,0.51314084,93513.0,93512.0,0.002]
[1745365288391,0.53234891,93513.0,93512.0,0.002]
[1745365290876,0.53134891,93513.0,93512.0,0.001]
[1745365291310,0.51214084,93513.0,93512.0,0.001]
[1745365291881,0.51214084,93513.0,93512.0,0.02475943]
[1745365292110,0.51214084,93513.0,93512.0,0.03213687]
[1745365293261,0.51214084,93513.0,93512.0,0.00837744]
[1745365296446,0.50214084,93513.0,93512.0,0.00737744]
[1745365296642,0.50714084,93513.0,93512.0,0.00837744]
[1745365296884,0.50714084,93513.0,93512.0,0.00737744]
[1745365297294,0.51314084,93513.0,93512.0,0.00737744]
[1745365298465,0.50214084,93513.0,93512.0,0.00737744]
[1745365298893,0.50514084,93513.0,93512.0,0.00737744]
[1745365300978,0.55565492,93513.0,93512.0,0.00737744]
[1745365301181,0.50514084,93513.0,93512.0,0.00737744]
[1745365310649,0.56648169,93513.0,93512.0,0.00737744]
[1745365311077,0.56648169,93513.0,93511.0,0.00146634]
[1745365311282,0.10830305,93512.0,93511.0,0.00146634]
[1745365311922,0.50500448,93512.0,93511.0,0.00146634]
[1745365312551,0.51000448,93512.0,93511.0,0.00146634]
[1745365314604,0.11330305,93512.0,93511.0,0.00146634]
[1745365314823,0.005,93513.0,93511.0,0.14144205]
[1745365315038,0.39670143,93561.0,93524.0,0.09216977]
[1745365315247,0.08,93525.0,93524.0,0.0983382]
[1745365315454,0.07216,93525.0,93524.0,0.0962]
[1745365315677,0.07216,93525.0,93524.0,1.010729]
[1745365315886,0.07216,93525.0,93524.0,0.42298456]
[1745365316093,0.07216,93525.0,93524.0,0.10355556]
[1745365316520,0.07316,93525.0,93524.0,0.10355556]
[1745365317772,0.07216,93525.0,93524.0,0.10355556]
[1745365318185,0.07316,93525.0,93524.0,0.11155556]
[1745365318399,0.07316,93525.0,93524.0,0.10355556]
[1745365318609,0.06716,93525.0,93524.0,0.11155556]
[1745365319047,0.06516,93525.0,93524.0,0.10355556]
[1745365319231,0.06616,93525.0,93524.0,0.11055556]
[1745365319650,0.05341,93525.0,93524.0,0.15332533]
[1745365319926,0.00355761,93525.0,93524.0,0.15332533]
[1745365320143,0.00355761,93525.0,93524.0,2.56581033]
[1745365320355,0.00355761,93525.0,93524.0,2.37822733]
[1745365320593,0.00355761,93525.0,93524.0,1.39216033]
[1745365320726,0.00255761,93525.0,93524.0,1.31703733]
[1745365321152,0.08568292,93559.0,93537.0,0.01069095]
[1745365321367,0.08568292,93559.0,93540.0,0.2706899]
[1745365321572,0.10830305,93550.0,93541.0,0.00735556]
[1745365321953,0.08568292,93549.0,93541.0,0.00735556]
[1745365322167,0.10830305,93548.0,93541.0,0.00735556]
[1745365322374,0.10830305,93548.0,93537.0,0.007]
[1745365322375,0.10830305,93548.0,93542.0,0.00735556]
[1745365322623,0.10876931,93548.0,93542.0,0.00735556]
[1745365323037,0.10876931,93548.0,93543.0,0.00735556]
[1745365323692,0.10876931,93548.0,93524.0,0.0468]
[1745365323889,0.10876931,93548.0,93541.0,0.001]
[1745365324095,0.10876931,93548.0,93524.0,0.0468]
[1745365324294,0.10876931,93548.0,93530.0,0.2706899]
[1745365324505,0.10876931,93548.0,93543.0,0.002]
[1745365324740,0.10876931,93548.0,93531.0,0.00732397]
[1745365324971,0.10876931,93548.0,93541.0,0.002]
[1745365325382,0.10876931,93548.0,93531.0,0.00732397]
[1745365325581,0.10876931,93548.0,93543.0,0.002]
[1745365326090,0.00046626,93548.0,93543.0,0.002]
[1745365326258,0.00046626,93548.0,93544.0,0.00946179]
[1745365326462,0.00046626,93548.0,93544.0,0.00732397]
[1745365327012,0.00246626,93548.0,93544.0,0.00732397]
[1745365327681,0.00246626,93548.0,93531.0,0.05345817]
[1745365327682,0.00446626,93548.0,93545.0,0.00732397]
[1745365327892,0.00046626,93548.0,93545.0,0.00732397]
[1745365328291,0.00246626,93548.0,93546.0,0.00732397]
[1745365328841,0.00446626,93548.0,93546.0,0.00732397]
[1745365329063,0.00446626,93548.0,93547.0,0.00732397]
[1745365329855,0.00446626,93548.0,93547.0,0.12171761]
[1745365330043,0.00046626,93548.0,93547.0,2.01914193]
[1745365330271,0.00046626,93548.0,93547.0,2.01700461]
[1745365330605,0.00046626,93548.0,93547.0,2.56117866]
[1745365330805,0.00046626,93548.0,93547.0,2.56517866]
[1745365331217,0.00046626,93548.0,93547.0,2.56117866]
[1745365331576,0.00046626,93548.0,93547.0,2.56517866]
[1745365331941,0.001,93589.0,93547.0,2.39957551]
[1745365332142,0.00099082,93562.0,93554.0,0.01068901]
[1745365332341,0.00099082,93562.0,93558.0,0.01068855]
[1745365332557,0.00099082,93562.0,93559.0,0.00732397]
[1745365332760,0.00099082,93562.0,93559.0,0.01801241]
[1745365332964,0.00099082,93562.0,93561.0,0.0496]
[1745365333165,0.00099082,93562.0,93561.0,0.2203439]
[1745365333363,0.00099082,93562.0,93561.0,2.64015287]
[1745365333585,0.001,93589.0,93561.0,2.64015287]
[1745365333586,0.00011,93589.0,93576.0,0.0106865]
[1745365333793,0.08568292,93615.0,93603.0,0.05341688]
[1745365333988,0.0008502,93619.0,93611.0,0.0106825]
[1745365334163,0.0008502,93619.0,93612.0,0.68434797]
[1745365334528,0.0008502,93619.0,93612.0,0.03159008]
[1745365334902,0.0008502,93619.0,93613.0,0.00732397]
[1745365335106,0.19398597,93618.0,93613.0,0.00732397]
[1745365335412,0.19398597,93618.0,93614.0,0.00732397]
[1745365336190,0.19398597,93618.0,93615.0,0.00732397]
[1745365336633,0.19398597,93618.0,93613.0,0.00045854]
[1745365337045,0.10830305,93618.0,93613.0,0.00045854]
[1745365337217,0.10830305,93618.0,93614.0,0.00726217]
[1745365337677,0.11230305,93618.0,93614.0,0.00726217]
[1745365337885,0.11230305,93618.0,93615.0,0.00726217]
[1745365338305,0.11230305,93618.0,93616.0,0.00726217]
[1745365338507,0.004,93618.0,93616.0,0.00726217]
[1745365338787,0.007,93618.0,93616.0,0.00726217]
[1745365338999,0.007,93618.0,93617.0,0.00726217]
[1745365339949,0.007,93618.0,93617.0,0.00939832]
[1745365340166,0.0008502,93619.0,93617.0,0.00939832]
[1745365340167,0.0008502,93619.0,93617.0,1.08917202]
[1745365340375,0.004,93618.0,93617.0,0.00726217]
[1745365340577,0.0008502,93619.0,93617.0,0.00726217]
[1745365340787,0.0008502,93619.0,93618.0,0.62052282]
[1745365340987,0.0008502,93619.0,93618.0,0.62778499]
[1745365341204,0.0008502,93619.0,93618.0,0.45451506]
[1745365341412,0.0028502,93619.0,93618.0,0.54326617]
[1745365341623,0.0028502,93619.0,93618.0,0.00726217]
[1745365341835,0.0008502,93619.0,93618.0,0.00726217]
[1745365342066,0.0028502,93619.0,93618.0,0.00726217]
[1745365342274,0.0028502,93619.0,93618.0,0.23702917]
[1745365342513,0.0028502,93619.0,93618.0,0.25775417]
[1745365342731,0.0028502,93619.0,93618.0,0.00726217]
[1745365343381,0.0028502,93619.0,93618.0,0.00939819]
[1745365344248,0.0028502,93619.0,93618.0,0.00726217]
[1745365346249,0.0577006,93625.0,93618.0,0.00726217]
[1745365346690,0.0577006,93625.0,93619.0,0.00726217]
[1745365347540,0.0597006,93625.0,93619.0,0.00726217]
[1745365347763,0.10830305,93624.0,93620.0,0.00726217]
[1745365348414,0.10830305,93624.0,93621.0,0.00726217]
[1745365349049,0.10830305,93624.0,93622.0,0.00726217]
[1745365349469,0.10830305,93624.0,93614.0,0.00726217]
[1745365350060,0.10830305,93624.0,93615.0,0.00726217]
[1745365350512,0.11130305,93624.0,93616.0,0.00726217]
[1745365350739,0.01068125,93622.0,93616.0,0.00726217]
[1745365350983,0.0683815,93625.0,93616.0,0.00726217]
[1745365350984,0.15350305,93621.0,93616.0,0.00726217]
[1745365351167,0.10830305,93617.0,93614.0,0.00726217]
[1745365351429,0.10830305,93615.0,93614.0,0.00726217]
[1745365351841,0.10830305,93615.0,93613.0,0.00045854]
[1745365353630,0.11430305,93615.0,93613.0,0.00045854]
[1745365354487,0.10830305,93615.0,93613.0,0.00045854]
[1745365354849,0.11430305,93615.0,93613.0,0.00045854]
[1745365355266,0.97683185,93614.0,93613.0,0.00045854]
[1745365355481,0.01068615,93579.0,93575.0,0.0004246]
[1745365355686,0.10830305,93577.0,93576.0,0.00089046]
[1745365356091,0.10830305,93577.0,93576.0,0.00818952]
[1745365356294,0.21958305,93577.0,93576.0,0.00818952]
[1745365357444,0.22758305,93577.0,93576.0,0.00818952]
[1745365357817,0.21958305,93577.0,93576.0,0.00089046]
[1745365358022,0.22558305,93577.0,93576.0,0.00089046]
[1745365358450,0.2481239,93577.0,93576.0,0.00089046]
[1745365359473,0.69990498,93577.0,93576.0,0.00089046]
[1745365359678,0.63082533,93577.0,93576.0,0.00089046]
[1745365360116,0.51100448,93577.0,93576.0,0.00089046]
[1745365360363,0.50500448,93577.0,93576.0,0.00089046]
[1745365360788,0.62216448,93577.0,93576.0,0.00089046]
[1745365360998,0.50500448,93577.0,93576.0,0.00089046]
[1745365361214,0.62416448,93577.0,93576.0,0.00189046]
[1745365361972,0.62416448,93577.0,93532.0,0.27238791]
[1745365362346,0.0498,93566.0,93533.0,0.140869]
[1745365362552,0.10830305,93565.0,93533.0,0.140869]
[1745365362746,0.0498,93566.0,93532.0,0.29370926]
[1745365362959,0.10830305,93559.0,93538.0,0.0004245]
[1745365365476,0.10930305,93559.0,93538.0,0.0074245]
[1745365366220,0.10930305,93559.0,93539.0,0.00213792]
[1745365366423,0.10830305,93559.0,93538.0,0.0004245]
[1745365366649,0.10830305,93559.0,93538.0,0.0044245]
[1745365366862,0.10830305,93559.0,93539.0,0.00213792]
[1745365368184,0.10830305,93559.0,93538.0,0.0004245]
[1745365368388,0.10830305,93559.0,93539.0,0.004]
[1745365369593,0.10830305,93559.0,93538.0,0.0004245]
[1745365370010,0.10830305,93559.0,93538.0,0.0044245]
[1745365370395,0.10830305,93559.0,93539.0,0.004]
[1745365370662,0.10830305,93558.0,93539.0,0.004]
[1745365370886,0.15500305,93558.0,93538.0,0.0004245]
[1745365371102,0.10830305,93555.0,93538.0,0.0044245]
[1745365371324,0.10830305,93555.0,93538.0,0.0004245]
[1745365371543,0.10830305,93555.0,93539.0,0.002]
[1745365371767,0.10830305,93551.0,93539.0,0.002]
[1745365372434,0.10830305,93545.0,93539.0,0.002]
[1745365372849,0.10830305,93545.0,93538.0,0.0004245]
[1745365373107,0.10830305,93545.0,93538.0,0.0024245]
[1745365374490,0.10830305,93545.0,93538.0,0.0004245]
[1745365374711,0.10930305,93545.0,93538.0,0.0004245]
[1745365374896,0.10830305,93539.0,93538.0,0.0004245]
[1745365375102,0.50500448,93539.0,93538.0,0.0004245]
[1745365376346,0.50600448,93539.0,93538.0,0.0004245]
[1745365376543,0.50500448,93539.0,93538.0,0.0004245]
[1745365376990,0.50800448,93539.0,93538.0,0.0004245]
[1745365377292,0.58698298,93539.0,93538.0,0.0004245]
[1745365378600,0.50800448,93539.0,93538.0,0.0004245]
[1745365381074,0.50600448,93539.0,93538.0,0.0004245]
[1745365382337,0.52254533,93539.0,93538.0,0.0004245]
[1745365382812,0.52454533,93539.0,93538.0,0.0004245]
[1745365383209,0.52054533,93539.0,93538.0,0.0004245]
[1745365383425,0.52254533,93539.0,93538.0,0.0004245]
[1745365383651,0.61972734,93539.0,93538.0,0.0004245]
[1745365383858,0.62790115,93539.0,93538.0,0.0004245]
[1745365384213,0.62590115,93539.0,93538.0,0.0004245]
[1745365384431,0.72240115,93539.0,93538.0,0.0004245]
[1745365385446,0.62521914,93539.0,93538.0,0.0004245]
[1745365385656,0.62721914,93539.0,93538.0,0.0004245]
[1745365385888,0.62521914,93539.0,93538.0,0.0004245]
[1745365386316,0.63221914,93539.0,93538.0,0.0014245]
[1745365388228,0.56140448,93539.0,93538.0,0.0014245]
[1745365388470,0.62420448,93539.0,93538.0,0.0014245]
[1745365389142,0.61720448,93539.0,93538.0,0.0004245]
[1745365389375,0.61704448,93539.0,93538.0,0.0004245]
[1745365389563,0.62204448,93539.0,93538.0,0.0014245]
[1745365390249,0.61704448,93539.0,93538.0,0.0004245]
[1745365390451,0.61804448,93539.0,93538.0,0.0004245]
[1745365392135,0.50800448,93539.0,93538.0,0.0004245]
[1745365392415,0.50700448,93539.0,93538.0,0.02189265]
[1745365392675,0.11230305,93539.0,93538.0,0.0004245]
[1745365392892,0.11130305,93539.0,93538.0,0.0004245]
[1745365393100,0.11130305,93539.0,93538.0,0.02149283]
[1745365393319,0.11230305,93539.0,93538.0,0.0004245]
[1745365393762,0.11230305,93539.0,93538.0,0.02141158]
[1745365393987,0.11230305,93539.0,93538.0,0.0004245]
[1745365394216,0.11230305,93539.0,93538.0,0.02136455]
[1745365395104,0.10930305,93539.0,93538.0,0.02136455]
[1745365395569,0.11030305,93539.0,93538.0,0.02136455]
[1745365395954,0.11130305,93539.0,93538.0,0.02136455]
[1745365398149,0.11130305,93539.0,93538.0,0.0004245]
[1745365401395,0.10930305,93539.0,93538.0,0.0004245]
[1745365401777,0.11030305,93539.0,93538.0,0.0004245]
[1745365404374,0.002,93539.0,93538.0,0.1001245]
[1745365404581,0.002,93539.0,93538.0,0.4073695]
[1745365404787,0.002,93539.0,93538.0,0.2242385]
[1745365404993,0.001,93539.0,93538.0,0.1001245]
[1745365405941,0.001,93539.0,93538.0,0.0554245]
[1745365406160,0.001,93539.0,93538.0,0.0014245]
[1745365406371,0.10930305,93539.0,93538.0,0.0054245]
[1745365406801,0.10930305,93539.0,93538.0,0.0014245]
[1745365408168,0.10930305,93539.0,93538.0,0.0054245]
[1745365408606,0.10930305,93539.0,93538.0,0.0084245]
[1745365410948,0.10830305,93539.0,93538.0,0.0004245]
[1745365411973,0.10830305,93539.0,93538.0,0.0014245]
[1745365412658,0.12597243,93539.0,93538.0,0.0014245]
[1745365412880,0.1715439,93539.0,93538.0,0.0014245]
[1745365413107,0.56824533,93539.0,93538.0,0.0004245]
[1745365414218,0.56824533,93539.0,93538.0,0.0014245]
[1745365414874,0.56824533,93539.0,93538.0,0.0004245]
[1745365415081,0.57124533,93539.0,93538.0,0.0004245]
[1745365415720,0.57524533,93539.0,93538.0,0.0004245]
[1745365415934,0.56824533,93539.0,93538.0,0.0004245]
[1745365416390,0.56824533,93539.0,93519.0,0.0004246]
[1745365416391,0.01454085,93520.0,93519.0,0.0004246]